fUST/lending_fUST_20260530
["ID","MTS","AMOUNT","RATE_DAILY","PERIOD"]
[423385316,1780072233000,-500.0,8.219e-05,2]
[423385320,1780072233000,-500.0,8.219e-05,2]
[423385335,1780072233000,-500.0,8.219e-05,2]
[423385327,1780072233000,-500.0,8.219e-05,2]
[423385315,1780072233000,-501.88689287,8.219e-05,2]
[423385329,1780072233000,-500.0,8.219e-05,2]
[423385330,1780072233000,-500.0,8.219e-05,2]
[423385326,1780072233000,-500.0,8.219e-05,2]
[423385328,1780072233000,-500.0,8.219e-05,2]
[423385322,1780072233000,-500.0,8.219e-05,2]
[423385323,1780072233000,-500.0,8.219e-05,2]
[423385313,1780072233000,-500.0,8.219e-05,2]
[423385317,1780072233000,-500.0,8.219e-05,2]
[423385325,1780072233000,-500.0,8.219e-05,2]
[423385321,1780072233000,-648.39980519,8.219e-05,2]
[423385370,1780072234000,-500.0,8.493e-05,2]
[423385372,1780072234000,-253.64686069,8.493e-05,2]
[423385367,1780072234000,-500.0,8.493e-05,2]
[423385373,1780072234000,-246.35313931,8.493e-05,2]
[423385369,1780072234000,-500.0,8.493e-05,2]
[423385368,1780072234000,-501.9521916,8.493e-05,2]
[423385365,1780072234000,-500.0,8.493e-05,2]
[423385371,1780072234000,-500.0,8.493e-05,2]
[423385366,1780072234000,-500.0,8.493e-05,2]
[423385381,1780072234000,-500.0,8.493e-05,2]
[423385375,1780072234000,-501.41082154,8.493e-05,2]
[423385374,1780072234000,-500.0,8.493e-05,2]
[423385383,1780072234000,-500.0,8.493e-05,2]
[423385380,1780072234000,-500.0,8.493e-05,2]
[423385379,1780072234000,-623.60612776,8.493e-05,2]
[423385382,1780072234000,-500.0,8.493e-05,2]
[423385384,1780072234000,-100.7683269,8.493e-05,2]
[423385377,1780072234000,-500.0,8.493e-05,2]
[423385376,1780072234000,-625.50364375,8.493e-05,2]
[423385378,1780072234000,-302.22320771,8.493e-05,2]
[423385425,1780072238000,-500.0,8.493e-05,2]
[423385431,1780072238000,-500.0,8.493e-05,2]
[423385435,1780072238000,-500.0,8.493e-05,2]
[423385428,1780072238000,-500.0,8.493e-05,2]
[423385427,1780072238000,-500.0,8.493e-05,2]
[423385426,1780072238000,-500.0,8.493e-05,2]
[423385432,1780072238000,-500.0,8.493e-05,2]
[423385433,1780072238000,-500.0,8.493e-05,2]
[423385424,1780072238000,-500.0,8.493e-05,2]
[423385437,1780072238000,-481.9900386,8.493e-05,2]
[423385430,1780072238000,-500.0,8.493e-05,2]
[423385429,1780072238000,-500.0,8.493e-05,2]
[423385422,1780072238000,-500.0,8.493e-05,2]
[423385446,1780072238000,-500.0,8.493e-05,2]
[423385436,1780072238000,-500.0,8.493e-05,2]
[423385449,1780072238000,-359.562719,8.508e-05,2]
[423385451,1780072238000,-500.0,8.767e-05,2]
[423385448,1780072238000,-500.0,8.493e-05,2]
[423385438,1780072238000,-500.0,8.493e-05,2]
[423385445,1780072238000,-500.0,8.493e-05,2]
[423385439,1780072238000,-500.0,8.493e-05,2]
[423385434,1780072238000,-500.0,8.493e-05,2]
[423385420,1780072238000,-500.0,8.493e-05,2]
[423385415,1780072238000,-500.0,8.493e-05,2]
[423385421,1780072238000,-500.0,8.493e-05,2]
[423385443,1780072238000,-500.0,8.493e-05,2]
[423385399,1780072238000,-500.0,8.489e-05,2]
[423385398,1780072238000,-500.0,8.489e-05,2]
[423385400,1780072238000,-500.0,8.489e-05,2]
[423385402,1780072238000,-500.0,8.489e-05,2]
[423385401,1780072238000,-500.0,8.489e-05,2]
[423385405,1780072238000,-500.0,8.489e-05,2]
[423385404,1780072238000,-500.0,8.489e-05,2]
[423385403,1780072238000,-500.0,8.489e-05,2]
[423385406,1780072238000,-500.0,8.489e-05,2]
[423385407,1780072238000,-500.0,8.489e-05,2]
[423385409,1780072238000,-500.0,8.489e-05,2]
[423385410,1780072238000,-399.2316731,8.493e-05,2]
[423385411,1780072238000,-500.0,8.493e-05,2]
[423385412,1780072238000,-500.0,8.493e-05,2]
[423385413,1780072238000,-500.0,8.493e-05,2]
[423385423,1780072238000,-500.0,8.493e-05,2]
[423385417,1780072238000,-500.0,8.493e-05,2]
[423385416,1780072238000,-500.0,8.493e-05,2]
[423385414,1780072238000,-503.89675225,8.493e-05,2]
[423385418,1780072238000,-500.0,8.493e-05,2]
[423385419,1780072238000,-500.0,8.493e-05,2]
[423385441,1780072238000,-734.9,8.493e-05,2]
[423385408,1780072238000,-642.51765778,8.489e-05,2]
[423385440,1780072238000,-500.0,8.493e-05,2]
[423385495,1780072238000,-500.0,8.767e-05,2]
[423385483,1780072238000,-614.76116514,8.767e-05,2]
[423385494,1780072238000,-487.11127858,8.767e-05,2]
[423385486,1780072238000,-500.0,8.767e-05,2]
[423385485,1780072238000,-500.0,8.767e-05,2]
[423385492,1780072238000,-500.0,8.767e-05,2]
[423385488,1780072238000,-500.0,8.767e-05,2]
[423385490,1780072238000,-500.0,8.767e-05,2]
[423385489,1780072238000,-500.0,8.767e-05,2]
[423385487,1780072238000,-481.48564224,8.767e-05,2]
[423385493,1780072238000,-561.83,8.767e-05,2]
[423385497,1780072238000,-267.0,8.767e-05,2]
[423385499,1780072238000,-500.0,8.767e-05,2]
[423385498,1780072238000,-500.0,8.767e-05,2]
[423385496,1780072238000,-502.83656252,8.767e-05,2]
[423385501,1780072238000,-500.0,8.767e-05,2]
[423385500,1780072238000,-500.0,8.767e-05,2]
[423385504,1780072238000,-734.9,8.767e-05,2]
[423385503,1780072238000,-500.0,8.767e-05,2]
[423385502,1780072238000,-500.0,8.767e-05,2]
[423385442,1780072238000,-500.0,8.493e-05,2]
[423385484,1780072238000,-500.0,8.767e-05,2]
[423385478,1780072238000,-500.0,8.767e-05,2]
[423385491,1780072238000,-500.0,8.767e-05,2]
[423385480,1780072238000,-500.0,8.767e-05,2]
[423385477,1780072238000,-500.0,8.767e-05,2]
[423385464,1780072238000,-500.0,8.767e-05,2]
[423385463,1780072238000,-463.77944852,8.767e-05,2]
[423385454,1780072238000,-216.72726933,8.767e-05,2]
[423385466,1780072238000,-500.0,8.767e-05,2]
[423385459,1780072238000,-500.0,8.767e-05,2]
[423385457,1780072238000,-500.0,8.767e-05,2]
[423385456,1780072238000,-283.27273067,8.767e-05,2]
[423385470,1780072238000,-500.0,8.767e-05,2]
[423385460,1780072238000,-500.0,8.767e-05,2]
[423385468,1780072238000,-500.0,8.767e-05,2]
[423385452,1780072238000,-500.0,8.767e-05,2]
[423385461,1780072238000,-361.07942581,8.767e-05,2]
[423385481,1780072238000,-500.0,8.767e-05,2]
[423385475,1780072238000,-500.0,8.767e-05,2]
[423385476,1780072238000,-500.0,8.767e-05,2]
[423385471,1780072238000,-500.0,8.767e-05,2]
[423385479,1780072238000,-643.43,8.767e-05,2]
[423385482,1780072238000,-500.0,8.767e-05,2]
[423385472,1780072238000,-500.0,8.767e-05,2]
[423385473,1780072238000,-458.45,8.767e-05,2]
[423385469,1780072238000,-500.0,8.767e-05,2]
[423385474,1780072238000,-500.0,8.767e-05,2]
[423385545,1780072239000,-408.27887307,9.315e-05,2]
[423385543,1780072239000,-500.0,9.315e-05,2]
[423385542,1780072239000,-500.0,9.315e-05,2]
[423385544,1780072239000,-526.67274873,9.315e-05,2]
[423385536,1780072239000,-500.0,9.041e-05,2]
[423385541,1780072239000,-500.0,9.315e-05,2]
[423385538,1780072239000,-10000.0,9.123e-05,2]
[423385537,1780072239000,-500.0,9.041e-05,2]
[423385546,1780072239000,-500.0,9.315e-05,2]
[423385531,1780072239000,-500.0,9.041e-05,2]
[423385540,1780072239000,-500.0,9.315e-05,2]
[423385539,1780072239000,-359.562719,9.195e-05,2]
[423385549,1780072239000,-500.0,9.315e-05,2]
[423385551,1780072239000,-500.0,9.315e-05,2]
[423385560,1780072239000,-500.0,9.315e-05,2]
[423385562,1780072239000,-500.0,9.315e-05,2]
[423385530,1780072239000,-526.61496429,9.041e-05,2]
[423385552,1780072239000,-422.48,9.315e-05,2]
[423385553,1780072239000,-500.0,9.315e-05,2]
[423385558,1780072239000,-734.9,9.315e-05,2]
[423385564,1780072239000,-359.562719,9.539e-05,2]
[423385556,1780072239000,-500.0,9.315e-05,2]
[423385550,1780072239000,-500.0,9.315e-05,2]
[423385548,1780072239000,-500.0,9.315e-05,2]
[423385547,1780072239000,-500.0,9.315e-05,2]
[423385535,1780072239000,-734.9,9.041e-05,2]
[423385505,1780072239000,-500.0,8.767e-05,2]
[423385528,1780072239000,-500.0,9.041e-05,2]
[423385507,1780072239000,-359.562719,8.852e-05,2]
[423385509,1780072239000,-500.0,9.041e-05,2]
[423385508,1780072239000,-420.0,9.04e-05,2]
[423385506,1780072239000,-500.0,8.767e-05,2]
[423385555,1780072239000,-500.0,9.315e-05,2]
[423385511,1780072239000,-500.0,9.041e-05,2]
[423385510,1780072239000,-500.0,9.041e-05,2]
[423385512,1780072239000,-500.0,9.041e-05,2]
[423385513,1780072239000,-500.0,9.041e-05,2]
[423385514,1780072239000,-314.64553126,9.041e-05,2]
[423385515,1780072239000,-500.0,9.041e-05,2]
[423385516,1780072239000,-500.0,9.041e-05,2]
[423385527,1780072239000,-500.0,9.041e-05,2]
[423385520,1780072239000,-500.0,9.041e-05,2]
[423385517,1780072239000,-527.4,9.041e-05,2]
[423385519,1780072239000,-500.0,9.041e-05,2]
[423385518,1780072239000,-500.0,9.041e-05,2]
[423385522,1780072239000,-500.0,9.041e-05,2]
[423385524,1780072239000,-500.0,9.041e-05,2]
[423385523,1780072239000,-500.0,9.041e-05,2]
[423385534,1780072239000,-500.0,9.041e-05,2]
[423385525,1780072239000,-500.0,9.041e-05,2]
[423385526,1780072239000,-500.0,9.041e-05,2]
[423385529,1780072239000,-500.0,9.041e-05,2]
[423385533,1780072239000,-500.0,9.041e-05,2]
[423385532,1780072239000,-500.0,9.041e-05,2]
[423385521,1780072239000,-500.0,9.041e-05,2]
[423385578,1780072239000,-734.9,9.863e-05,2]
[423385568,1780072239000,-500.0,9.589e-05,2]
[423385577,1780072239000,-151.0,9.589e-05,2]
[423385602,1780072239000,-734.9,0.0001178,2]
[423385604,1780072239000,-14816.86243785,0.000119,2]
[423385601,1780072239000,-734.9,0.00011506,2]
[423385606,1780072239000,-526.67274869,0.00012058,2]
[423385603,1780072239000,-2678.02357404,0.000119,2]
[423385609,1780072239000,-213.2620516,0.0001215,2]
[423385613,1780072239000,-734.9,0.0001315,2]
[423385612,1780072239000,-734.9,0.00012876,2]
[423385611,1780072239000,-734.9,0.00012602,2]
[423385615,1780072239000,-526.67274869,0.00013479,2]
[423385614,1780072239000,-734.9,0.00013424,2]
[423385618,1780072239000,-500.0,0.00013698,2]
[423385617,1780072239000,-500.0,0.00013698,2]
[423385616,1780072239000,-500.0,0.00013698,2]
[423385610,1780072239000,-734.9,0.00012328,2]
[423385619,1780072239000,-500.0,0.00013698,2]
[423385620,1780072239000,-30.40907369,0.00013698,2]
[423385621,1780072239000,-469.59092631,0.00013698,2]
[423385567,1780072239000,-620.25,9.589e-05,2]
[423385628,1780072239000,-500.0,0.00013698,2]
[423385622,1780072239000,-178.21907369,0.00013698,2]
[423385624,1780072239000,-500.0,0.00013698,2]
[423385626,1780072239000,-196.59895041,0.00013698,2]
[423385625,1780072239000,-500.0,0.00013698,2]
[423385627,1780072239000,-500.0,0.00013698,2]
[423385605,1780072239000,-734.9,0.00012054,2]
[423385600,1780072239000,-734.9,0.00011232,2]
[423385623,1780072239000,-202.29677202,0.00013698,2]
[423385598,1780072239000,-734.9,0.00010958,2]
[423385607,1780072239000,-8393.74353444,0.000121,5]
[423385566,1780072239000,-500.0,9.589e-05,2]
[423385573,1780072239000,-500.0,9.589e-05,2]
[423385574,1780072239000,-734.9,9.589e-05,2]
[423385572,1780072239000,-393.4,9.589e-05,2]
[423385569,1780072239000,-500.0,9.589e-05,2]
[423385575,1780072239000,-500.0,9.589e-05,2]
[423385571,1780072239000,-291.76,9.589e-05,2]
[423385576,1780072239000,-500.0,9.589e-05,2]
[423385583,1780072239000,-500.0,0.00010136,2]
[423385579,1780072239000,-500.0,9.863e-05,2]
[423385586,1780072239000,-500.0,0.0001041,2]
[423385570,1780072239000,-500.0,9.589e-05,2]
[423385588,1780072239000,-734.9,0.00010684,2]
[423385589,1780072239000,-500.0,0.00010684,2]
[423385597,1780072239000,-500.0,0.00010958,5]
[423385599,1780072239000,-447.94,0.00010958,2]
[423385595,1780072239000,-500.0,0.00010958,4]
[423385591,1780072239000,-500.0,0.00010958,2]
[423385608,1780072239000,-151.862176,0.000121,2]
[423385580,1780072239000,-359.562719,9.883e-05,2]
[423385585,1780072239000,-734.9,0.0001041,2]
[423385584,1780072239000,-185.03619183,0.0001015,2]
[423385587,1780072239000,-526.67274869,0.00010636,2]
[423385581,1780072239000,-734.9,0.00010136,2]
[423385593,1780072239000,-500.0,0.00010958,3]
[423385654,1780072240000,-385.61156514,0.00013698,2]
[423385651,1780072240000,-502.83293856,0.00013698,2]
[423385653,1780072240000,-502.08940335,0.00013698,2]
[423385648,1780072240000,-500.0,0.00013698,2]
[423385659,1780072240000,-50.9489269,0.00013698,2]
[423385655,1780072240000,-114.38843486,0.00013698,2]
[423385656,1780072240000,-716.5707,0.00013698,2]
[423385657,1780072240000,-500.0,0.00013698,2]
[423385658,1780072240000,-683.9510731,0.00013698,2]
[423385663,1780072240000,-397.147676,0.00013699,2]
[423385671,1780072240000,-307.78301367,0.00013699,2]
[423385660,1780072240000,-500.0,0.00013698,2]
[423385662,1780072240000,-500.0,0.00013698,2]
[423385665,1780072240000,-819.73121,0.00013699,2]
[423385667,1780072240000,-411.70273259,0.00013699,2]
[423385666,1780072240000,-408.02847741,0.00013699,2]
[423385669,1780072240000,-97.34448659,0.00013699,2]
[423385652,1780072240000,-441.10935802,0.00013698,2]
[423385661,1780072240000,-500.0,0.00013698,2]
[423385650,1780072240000,-502.48327565,0.00013698,2]
[423385639,1780072240000,-500.0,0.00013698,2]
[423385647,1780072240000,-532.57780585,0.00013698,2]
[423385670,1780072240000,-819.73121,0.00013699,2]
[423385633,1780072240000,-500.0,0.00013698,2]
[423385634,1780072240000,-500.0,0.00013698,2]
[423385631,1780072240000,-500.0,0.00013698,2]
[423385632,1780072240000,-500.0,0.00013698,2]
[423385630,1780072240000,-500.0,0.00013698,2]
[423385629,1780072240000,-500.0,0.00013698,2]
[423385635,1780072240000,-500.0,0.00013698,2]
[423385649,1780072240000,-502.32309707,0.00013698,2]
[423385636,1780072240000,-500.0,0.00013698,2]
[423385646,1780072240000,-500.0,0.00013698,2]
[423385638,1780072240000,-311.06625805,0.00013698,2]
[423385645,1780072240000,-500.0,0.00013698,2]
[423385644,1780072240000,-500.0,0.00013698,2]
[423385640,1780072240000,-500.0,0.00013698,2]
[423385642,1780072240000,-500.0,0.00013698,2]
[423385641,1780072240000,-500.0,0.00013698,2]
[423385643,1780072240000,-500.0,0.00013698,2]
[423385637,1780072240000,-500.0,0.00013698,2]
[423385668,1780072240000,-722.38672341,0.00013699,2]
[423385664,1780072240000,-819.73121,0.00013699,2]
[423385675,1780072240000,-819.73121,0.00013699,2]
[423385691,1780072240000,-151.0,0.00013699,2]
[423385702,1780072240000,-500.0,0.00013972,2]
[423385692,1780072240000,-151.0,0.00013699,2]
[423385695,1780072240000,-500.0,0.00013972,2]
[423385696,1780072240000,-500.0,0.00013972,2]
[423385694,1780072240000,-500.0,0.00013972,2]
[423385703,1780072240000,-500.0,0.00013972,2]
[423385714,1780072240000,-486.83054955,0.00013972,2]
[423385697,1780072240000,-500.0,0.00013972,2]
[423385709,1780072240000,-502.08944023,0.00013972,2]
[423385706,1780072240000,-500.0,0.00013972,2]
[423385704,1780072240000,-500.0,0.00013972,2]
[423385705,1780072240000,-602.76,0.00013972,2]
[423385712,1780072240000,-473.67092175,0.00013972,2]
[423385708,1780072240000,-500.0,0.00013972,2]
[423385710,1780072240000,-506.67910156,0.00013972,2]
[423385713,1780072240000,-500.0,0.00013972,2]
[423385674,1780072240000,-21.8626104,0.00013699,2]
[423385707,1780072240000,-500.0,0.00013972,2]
[423385693,1780072240000,-282.003079,0.00013699,2]
[423385698,1780072240000,-500.0,0.00013972,2]
[423385689,1780072240000,-151.0,0.00013699,2]
[423385673,1780072240000,-797.8685996,0.00013699,2]
[423385676,1780072240000,-1492.495869,0.00013699,2]
[423385672,1780072240000,-511.94819633,0.00013699,2]
[423385677,1780072240000,-1492.495869,0.00013699,2]
[423385678,1780072240000,-1492.495869,0.00013699,2]
[423385699,1780072240000,-500.0,0.00013972,2]
[423385680,1780072240000,-289.03186699,0.00013699,2]
[423385679,1780072240000,-1492.495869,0.00013699,2]
[423385681,1780072240000,-500.0,8.219e-05,2]
[423385683,1780072240000,-1492.495869,0.00013699,2]
[423385711,1780072240000,-500.0,0.00013972,2]
[423385685,1780072240000,-97.66538568,0.00013699,2]
[423385684,1780072240000,-1492.495869,0.00013699,2]
[423385688,1780072240000,-151.0,0.00013699,2]
[423385687,1780072240000,-151.0,0.00013699,2]
[423385686,1780072240000,-1394.83048332,0.00013699,2]
[423385690,1780072240000,-151.0,0.00013699,2]
[423385700,1780072240000,-500.0,0.00013972,2]
[423385701,1780072240000,-500.0,0.00013972,2]
[423385682,1780072240000,-1203.46400201,0.00013699,2]
[423385745,1780072243000,-441.15738927,0.00013972,2]
[423385744,1780072243000,-1.84261073,0.00013972,2]
[423385740,1780072243000,-13.16945045,0.00013972,2]
[423385742,1780072243000,-64.78973765,0.00013972,2]
[423385737,1780072243000,-500.0,8.493e-05,2]
[423385739,1780072243000,-500.0,9.041e-05,2]
[423385741,1780072243000,-435.21026235,0.00013972,2]
[423385738,1780072243000,-500.0,8.767e-05,2]
[423385746,1780072243000,-58.84261073,0.00013972,2]
[423385743,1780072243000,-500.66026235,0.00013972,2]
[423385747,1780072243000,-716.5707,0.00013972,2]
[423385757,1780072243000,-473.989765,0.00014196,2]
[423385749,1780072243000,-734.9,0.00013972,2]
[423385750,1780072243000,-149.68668927,0.00013972,2]
[423385751,1780072243000,-350.31331073,0.00013972,2]
[423385752,1780072243000,-500.0,0.00013972,2]
[423385753,1780072243000,-337.02668927,0.00013972,2]
[423385754,1780072243000,-162.97331073,0.00013972,2]
[423385756,1780072243000,-241.48791137,0.0001415,2]
[423385759,1780072243000,-274.508,0.00014196,2]
[423385758,1780072243000,-8347.5480779,0.00014196,2]
[423385755,1780072243000,-151.0,0.00013972,2]
[423385748,1780072243000,-500.0,0.00013972,2]
[423385784,1780072246000,-1492.495869,0.00014196,2]
[423385788,1780072246000,-235.72,0.00014246,2]
[423385786,1780072246000,-151.0,0.00014196,2]
[423385792,1780072246000,-334.3,0.00014246,2]
[423385787,1780072246000,-500.0,0.00014246,2]
[423385789,1780072246000,-560.81,0.00014246,2]
[423385785,1780072246000,-151.0,0.00014196,2]
[423385790,1780072246000,-500.0,0.00014246,2]
[423385782,1780072246000,-1492.495869,0.00014196,2]
[423385778,1780072246000,-202.554056,0.00014196,2]
[423385791,1780072246000,-500.0,0.00014246,2]
[423385779,1780072246000,-202.554056,0.00014196,2]
[423385776,1780072246000,-202.554056,0.00014196,2]
[423385777,1780072246000,-151.0,0.00014196,2]
[423385780,1780072246000,-202.554056,0.00014196,2]
[423385781,1780072246000,-1492.495869,0.00014196,2]
[423385775,1780072246000,-174.214526,0.00014196,2]
[423385771,1780072246000,-569.37999998,0.00014196,2]
[423385794,1780072246000,-500.0,0.00014246,2]
[423385783,1780072246000,-1492.495869,0.00014196,2]
[423385795,1780072246000,-500.0,0.00014246,2]
[423385774,1780072246000,-6808.92859122,0.00014196,2]
[423385796,1780072246000,-501.20120435,0.00014246,2]
[423385793,1780072246000,-500.0,0.00014246,2]
[423385817,1780072246000,-500.0,0.0001452,2]
[423385811,1780072246000,-500.0,0.0001452,2]
[423385812,1780072246000,-500.0,0.0001452,2]
[423385813,1780072246000,-500.0,0.0001452,2]
[423385806,1780072246000,-500.0,0.00014246,2]
[423385816,1780072246000,-500.0,0.0001452,2]
[423385807,1780072246000,-734.9,0.00014246,2]
[423385814,1780072246000,-500.0,0.0001452,2]
[423385808,1780072246000,-500.0,0.00014246,2]
[423385810,1780072246000,-500.0,0.00014246,2]
[423385815,1780072246000,-500.0,0.0001452,2]
[423385804,1780072246000,-500.0,0.00014246,2]
[423385805,1780072246000,-716.5707,0.00014246,2]
[423385801,1780072246000,-819.73121,0.00014246,2]
[423385797,1780072246000,-500.0,0.00014246,2]
[423385802,1780072246000,-819.73121,0.00014246,2]
[423385799,1780072246000,-500.0,0.00014246,2]
[423385800,1780072246000,-819.73121,0.00014246,2]
[423385803,1780072246000,-819.73121,0.00014246,2]
[423385798,1780072246000,-500.0,0.00014246,2]
[423385809,1780072246000,-500.0,0.00014246,2]
[423385831,1780072247000,-716.5707,0.00014794,2]
[423385833,1780072247000,-500.0,0.00014794,2]
[423385830,1780072247000,-500.0,0.00014794,2]
[423385835,1780072247000,-454.26038107,0.000149,2]
[423385841,1780072247000,-151.0,0.000149,2]
[423385842,1780072247000,-285.559041,0.000149,2]
[423385823,1780072247000,-734.96,0.0001452,2]
[423385832,1780072247000,-500.0,0.00014794,2]
[423385820,1780072247000,-646.10068089,0.0001452,2]
[423385819,1780072247000,-500.0,0.0001452,2]
[423385825,1780072247000,-151.0,0.0001452,2]
[423385822,1780072247000,-500.0,0.0001452,2]
[423385821,1780072247000,-716.5707,0.0001452,2]
[423385818,1780072247000,-500.0,0.0001452,2]
[423385829,1780072247000,-500.0,0.00014794,2]
[423385828,1780072247000,-500.0,0.00014794,2]
[423385826,1780072247000,-500.0,0.00014794,2]
[423385834,1780072247000,-423.36554842,0.000149,2]
[423385824,1780072247000,-500.0,0.0001452,2]
[423385840,1780072247000,-151.0,0.000149,2]
[423385827,1780072247000,-500.0,0.00014794,2]
[423385836,1780072247000,-460.17504016,0.000149,2]
[423385860,1780072247000,-25890.06642634,0.00015,2]
[423385858,1780072247000,-80265.95051487,0.00015,2]
[423385859,1780072247000,-116468.82558264,0.00015,2]
[423385857,1780072247000,-500.0,0.00014999,2]
[423385856,1780072247000,-500.0,0.00014999,2]
[423385853,1780072247000,-526.67274869,0.000149,2]
[423385854,1780072247000,-6217.72030872,0.000149,2]
[423385855,1780072247000,-2181.0,0.00014998,2]
[423385852,1780072247000,-202.554056,0.000149,2]
[423385851,1780072247000,-202.554056,0.000149,2]
[423385849,1780072247000,-202.554056,0.000149,2]
[423385845,1780072247000,-151.0,0.000149,2]
[423385848,1780072247000,-202.554056,0.000149,2]
[423385850,1780072247000,-202.554056,0.000149,2]
[423385846,1780072247000,-248.881721,0.000149,2]
[423385847,1780072247000,-202.554056,0.000149,2]
[423385843,1780072247000,-202.554056,0.000149,2]
[423385838,1780072247000,-151.0,0.000149,2]
[423385837,1780072247000,-477.93406139,0.000149,2]
[423385844,1780072247000,-202.554056,0.000149,2]
[423385839,1780072247000,-151.0,0.000149,2]
[423385862,1780072272000,-500.0,8.219e-05,2]
[423385863,1780072289000,-500.0,8.489e-05,2]
[423385864,1780072306000,-500.0,8.489e-05,2]
[423385877,1780072630000,3296.81206692,8.01e-05,2]
[423385899,1780072988000,151.0,0.0002045,120]
[423385929,1780073432000,-398.88015379,8.136e-05,2]
[423385923,1780073432000,-60.902,8.136e-05,2]
[423385928,1780073432000,-101.05628641,8.136e-05,2]
[423385925,1780073432000,-500.0,8.136e-05,2]
[423385926,1780073432000,-549.76236044,8.136e-05,2]
[423385924,1780073432000,-439.098,8.136e-05,2]
[423385927,1780073432000,-500.0,8.136e-05,2]
[423385922,1780073432000,-500.0,8.136e-05,2]
[423385942,1780073440000,-500.0,8.136e-05,2]
[423385941,1780073440000,-0.0635598,8.136e-05,2]
[423385946,1780073440000,-500.0,8.136e-05,2]
[423385944,1780073440000,-500.0,8.136e-05,2]
[423385945,1780073440000,-500.0,8.136e-05,2]
[423385943,1780073440000,-500.0,8.136e-05,2]
[423385947,1780073441000,-500.0,8.136e-05,2]
[423385950,1780073441000,-500.0,8.136e-05,2]
[423385948,1780073441000,-500.0,8.136e-05,2]
[423385949,1780073441000,-500.0,8.136e-05,2]
[423385951,1780073441000,-368.7242021,8.136e-05,2]
[423385956,1780073441000,-400.0,8.136e-05,2]
[423385953,1780073441000,-500.0,8.136e-05,2]
[423385958,1780073441000,-12623.34108908,8.137e-05,9]
[423385957,1780073441000,-150.18302055,8.137e-05,2]
[423385952,1780073441000,-131.2757979,8.136e-05,2]
[423385954,1780073441000,-500.0,8.136e-05,2]
[423385955,1780073441000,-500.0,8.136e-05,2]
[423385976,1780073446000,-1155.81912994,8.137e-05,9]
[423385977,1780073446000,-3838.87876245,8.137e-05,9]
[423386382,1780073463000,5000.0,8.01e-05,2]
[423386383,1780073471000,5000.0,8.01e-05,2]
[423386389,1780073648000,1861.73734475,8.01e-05,2]
[423386390,1780073659000,1629.539651,7.984e-05,2]
[423386395,1780073985000,172.375954,6.83e-05,2]
[423386405,1780074012000,-29963.068,8.137e-05,9]
[423386406,1780074040000,5000.0,8.01e-05,2]
[423386407,1780074047000,2048.13869347,8.01e-05,2]
[423386409,1780074092000,2869.577974,7.247e-05,2]
[423386408,1780074092000,-151.0,8.135e-05,2]
[423386410,1780074109000,-1200.0,8.135e-05,2]
[423386412,1780074125000,-300.0,8.135e-05,2]
[423386413,1780074142000,-157.172757,8.135e-05,2]
[423386414,1780074145000,151.0,0.00020509,120]
[423386415,1780074159000,-500.0,8.136e-05,2]
[423386417,1780074176000,-600.0,8.136e-05,2]
[423386418,1780074192000,-500.0,8.136e-05,2]
[423386421,1780074274000,5000.0,8.01e-05,2]
[423386423,1780074297000,5000.0,8.01e-05,2]
[423386425,1780074319000,5000.0,8.01e-05,2]
[423386427,1780074341000,299.3699,8.01e-05,2]
[423386431,1780074381000,800.93707747,0.00020509,120]
[423386440,1780074493000,160.0775799,7.247e-05,2]
[423386442,1780074497000,1300.0,8.01e-05,2]